bitfinex-derivatives/quotes_BTCF0:USTF0_20241009
["timestamp","ask_amount","ask_price","bid_price","bid_amount"]
[1728498047154,0.3608,61328.0,61320.0,0.3608]
[1728498047345,0.34448,61328.0,61327.0,0.081583]
[1728498047545,0.34548,61328.0,61327.0,0.081583]
[1728498048351,0.34548,61328.0,61321.0,0.28]
[1728498048547,0.065269,61322.0,61321.0,0.08159]
[1728498048746,0.28,61327.0,61320.0,0.448392]
[1728498048747,0.081591,61321.0,61320.0,0.448392]
[1728498048946,0.28,61327.0,61322.0,0.081589]
[1728498048947,0.081587,61324.0,61322.0,0.081589]
[1728498049151,0.081588,61323.0,61322.0,0.081589]
[1728498049357,0.28,61327.0,61320.0,0.006]
[1728498049358,0.081583,61327.0,61320.0,0.006]
[1728498049663,0.34548,61328.0,61327.0,0.081583]
[1728498051354,0.34548,61328.0,61326.0,0.01632]
[1728498051355,0.34448,61328.0,61326.0,0.01632]
[1728498051667,0.706061,61328.0,61327.0,0.003]
[1728498052866,0.706061,61328.0,61327.0,0.001]
[1728498054653,0.706061,61328.0,61322.0,0.04871715]
[1728498054654,1.71364,61328.0,61322.0,0.04871715]
[1728498054858,0.081589,61322.0,61320.0,0.04871715]
[1728498055056,0.081592,61320.0,61318.0,0.06493823]
[1728498055362,0.722388,61323.0,61316.0,0.00244644]
[1728498055363,0.442388,61323.0,61322.0,0.081589]
[1728498055655,0.081584,61326.0,61322.0,0.081589]
[1728498055852,0.427062,61328.0,61324.0,0.0650635]
[1728498056051,0.34548,61328.0,61327.0,0.081583]
[1728498056260,0.32916,61328.0,61327.0,0.16269464]
[1728498056451,0.001,61328.0,61327.0,0.18408297]
[1728498056854,0.081574,61334.0,61327.0,0.1841193]
[1728498057055,0.081574,61334.0,61333.0,0.081575]
[1728498057563,0.12583286,61334.0,61333.0,0.081575]
[1728498058059,0.081574,61334.0,61333.0,0.081575]
[1728498058460,0.081569,61337.0,61336.0,0.097881]
[1728498058661,0.3608,61341.0,61340.0,0.081565]
[1728498058967,0.00084,61350.0,61345.0,0.081559]
[1728498059174,0.3608,61353.0,61345.0,0.361559]
[1728498059656,0.3608,61353.0,61345.0,0.081559]
[1728498059657,0.081555,61348.0,61345.0,0.081559]
[1728498059878,0.081561,61343.0,61340.0,0.3608]
[1728498060165,0.3608,61348.0,61339.0,0.28]
[1728498060366,0.3608,61353.0,61347.0,0.28]
[1728498060562,0.442348,61353.0,61351.0,0.081551]
[1728498061260,0.3608,61353.0,61352.0,0.081549]
[1728498061760,0.3668,61353.0,61352.0,0.081549]
[1728498062358,0.006,61353.0,61352.0,0.081549]
[1728498062554,0.006,61353.0,61352.0,0.850509]
[1728498062763,0.0736776,61358.0,61356.0,0.081544]
[1728498063156,0.3608,61361.0,61360.0,0.01631]
[1728498063157,0.442337,61361.0,61360.0,0.01631]
[1728498063357,0.442337,61361.0,61351.0,0.001]
[1728498063358,0.081549,61352.0,61351.0,0.001]
[1728498063555,0.361549,61352.0,61351.0,0.001]
[1728498063766,0.361549,61352.0,61348.0,0.01631]
[1728498063767,0.081553,61349.0,61348.0,0.01631]
[1728498065470,0.086553,61349.0,61348.0,0.01631]
[1728498066160,0.086553,61349.0,61348.0,0.097865]
[1728498066463,0.090553,61349.0,61348.0,0.097865]
[1728498066661,0.009,61349.0,61348.0,0.377865]
[1728498068363,0.009,61349.0,61348.0,1.466865]
[1728498068568,0.081535,61363.0,61362.0,0.01631]
[1728498070059,0.088535,61363.0,61362.0,0.01831]
[1728498070273,0.090535,61363.0,61362.0,0.01831]
[1728498071166,0.009,61363.0,61362.0,0.01831]
[1728498071467,0.009,61363.0,61362.0,0.099846]
[1728498072666,0.3608,61372.0,61371.0,0.081524]
[1728498072856,0.3608,61372.0,61371.0,0.361524]
[1728498073962,0.3628,61372.0,61371.0,0.362524]
[1728498074162,0.3608,61379.0,61376.0,0.01431]
[1728498074163,0.081516,61377.0,61376.0,0.01431]
[1728498074463,0.3608,61379.0,61377.0,0.081516]
[1728498074657,0.3608,61379.0,61376.0,0.01431]
[1728498074658,0.3608,61379.0,61378.0,0.081515]
[1728498074855,0.082348,61384.0,61376.0,0.29431]
[1728498074856,0.081508,61384.0,61383.0,0.081508]
[1728498075756,0.44229,61397.0,61382.0,0.28]
[1728498076064,0.44229,61397.0,61394.0,0.01431]
[1728498076065,0.081492,61395.0,61394.0,0.01431]
[1728498076269,0.081492,61395.0,61394.0,0.095804]
[1728498076464,0.2308,61403.0,61394.0,0.01431]
[1728498076766,1.581484,61402.0,61399.0,0.081486]
[1728498077063,1.581484,61402.0,61394.0,0.01431]
[1728498077064,1.5,61402.0,61394.0,0.01431]
[1728498077253,0.081492,61395.0,61394.0,0.01431]
[1728498078158,0.3608,61398.0,61394.0,0.01431]
[1728498078364,0.081486,61400.0,61398.0,0.081487]
[1728498079267,0.081486,61400.0,61399.0,0.081487]
[1728498079461,0.18215489,61400.0,61394.0,0.01631]
[1728498079659,0.10066889,61399.0,61397.0,0.28]
[1728498079861,0.10066889,61399.0,61398.0,0.001]
[1728498080059,0.12807039,61399.0,61398.0,0.082488]
[1728498080265,0.04658339,61399.0,61398.0,0.082488]
[1728498080966,0.0459123,61399.0,61398.0,0.001]
[1728498081168,0.0459123,61399.0,61398.0,0.082488]
[1728498081675,0.081479,61405.0,61398.0,0.4896]
[1728498081861,0.03899805,61403.0,61402.0,0.23100797]
[1728498082061,0.081475,61409.0,61402.0,0.361483]
[1728498082062,0.14428478,61409.0,61402.0,0.361483]
[1728498082371,0.12799478,61415.0,61408.0,0.28]
[1728498082671,0.06517,61419.0,61417.0,0.081462]
[1728498082863,0.14045218,61418.0,61417.0,0.081463]
[1728498083260,0.05899018,61418.0,61417.0,0.081463]
[1728498083565,0.00244281,61422.0,61416.0,0.28]
[1728498083764,0.442263,61417.0,61416.0,0.28]
[1728498083971,0.442263,61417.0,61416.0,0.361464]
[1728498084165,0.3608,61417.0,61416.0,0.361464]
[1728498084372,0.08145,61428.0,61427.0,0.01384719]
[1728498084666,0.08145,61428.0,61427.0,0.29384719]
[1728498084872,0.13890982,61428.0,61427.0,0.29384719]
[1728498085069,0.3608,61429.0,61428.0,0.081449]
[1728498085265,0.081444,61432.0,61427.0,0.29384719]
[1728498085462,0.00244209,61435.0,61427.0,0.65564719]
[1728498085670,0.08388109,61435.0,61434.0,0.361441]
[1728498086372,0.081439,61435.0,61434.0,0.361441]
[1728498086963,1.5,61441.0,61436.0,0.081438]
[1728498087161,0.081434,61440.0,61438.0,0.081434]
[1728498087369,0.00096001,61441.0,61439.0,0.28]
[1728498087575,0.3608,61442.0,61441.0,0.081431]
[1728498087779,1.94223,61442.0,61441.0,0.081431]
[1728498088071,0.3608,61449.0,61439.0,0.28]
[1728498088280,0.3608,61449.0,61437.0,0.3608]
[1728498088281,0.081425,61446.0,61445.0,0.28]
[1728498088772,0.081426,61445.0,61444.0,0.01628]
[1728498090474,0.081426,61445.0,61426.0,0.08389295]
[1728498090475,0.081447,61431.0,61427.0,0.28]
[1728498090772,0.3608,61434.0,61433.0,0.081442]
[1728498090978,0.442241,61434.0,61433.0,0.361442]
[1728498091179,0.081432,61441.0,61433.0,0.28]
[1728498091180,0.442232,61441.0,61433.0,0.28]
[1728498091386,0.3608,61441.0,61440.0,0.081433]
[1728498091674,0.3608,61441.0,61440.0,0.03753289]
[1728498091880,0.442231,61441.0,61440.0,0.03753289]
[1728498092072,0.442231,61441.0,61440.0,0.01629]
[1728498093179,0.442231,61441.0,61440.0,0.097723]
[1728498093771,0.442231,61441.0,61440.0,0.01629]
[1728498093976,0.08143,61444.0,61443.0,0.081427]
[1728498094178,0.08143,61444.0,61440.0,0.01629]
[1728498094476,0.081431,61441.0,61440.0,0.01629]
[1728498094677,0.442231,61441.0,61440.0,0.01629]
[1728498095074,0.442231,61441.0,61440.0,0.097723]
[1728498095075,0.081431,61441.0,61440.0,0.097723]
[1728498096183,0.081431,61441.0,61440.0,0.01629]
[1728498096880,0.081431,61441.0,61429.0,0.28]
[1728498096881,1.36828,61441.0,61426.0,0.08389195]
[1728498097071,0.442225,61446.0,61426.0,0.00244195]
[1728498097072,0.06516,61427.0,61426.0,0.00244195]
[1728498098274,0.06516,61427.0,61426.0,0.01544195]
[1728498098871,0.081448,61429.0,61428.0,0.081448]
[1728498099983,0.2222,61435.0,61428.0,0.001]
[1728498100176,0.081441,61434.0,61431.0,0.28]
[1728498100382,0.081441,61434.0,61433.0,0.081441]
[1728498101374,0.2222,61435.0,61434.0,0.081441]
[1728498101587,0.303639,61435.0,61434.0,0.081441]
[1728498102575,0.081439,61435.0,61434.0,0.04108222]
[1728498102878,0.081442,61433.0,61432.0,1e-08]
[1728498103079,0.12391229,61433.0,61432.0,1e-08]
[1728498103475,0.04247029,61433.0,61423.0,0.28173616]
[1728498103787,0.28,61435.0,61426.0,0.081451]
[1728498103788,0.08145,61427.0,61426.0,0.081451]
[1728498103975,0.081454,61424.0,61423.0,0.28173616]
[1728498104181,0.3608,61431.0,61423.0,0.28173616]
[1728498104388,0.3608,61431.0,61426.0,0.08145]
[1728498104389,0.04195517,61430.0,61426.0,0.08145]
[1728498104593,0.04195517,61429.0,61426.0,0.08145]
[1728498104887,0.04195517,61428.0,61426.0,0.08145]
[1728498105084,0.04195517,61427.0,61426.0,0.08145]
[1728498105387,0.04195517,61427.0,61423.0,0.36319016]
[1728498105388,0.081454,61424.0,61423.0,0.36319016]
[1728498105686,0.081454,61424.0,61423.0,0.37619016]
[1728498105882,0.081454,61424.0,61423.0,0.013]
[1728498105883,0.065164,61424.0,61423.0,0.013]
[1728498106075,0.065164,61424.0,61423.0,0.094455]
[1728498106279,0.1064865,61424.0,61423.0,0.094455]
[1728498106475,0.1064865,61424.0,61423.0,0.081455]
[1728498106676,0.1064865,61424.0,61423.0,0.092455]
[1728498106881,0.1064865,61424.0,61415.0,0.442264]
[1728498106882,0.08907839,61424.0,61415.0,0.00144]
[1728498107079,0.081468,61413.0,61405.0,0.081478]
[1728498107285,0.081471,61411.0,61410.0,0.081471]
[1728498107582,0.0413225,61411.0,61410.0,0.081472]
[1728498107986,0.1227935,61411.0,61410.0,0.081472]
[1728498108286,0.0413225,61411.0,61410.0,0.081472]
[1728498108880,0.1227935,61411.0,61410.0,0.081472]
[1728498109380,0.17009957,61411.0,61410.0,0.083472]
[1728498109586,0.081471,61411.0,61410.0,0.083472]
[1728498109790,0.081471,61411.0,61410.0,0.002]
[1728498111085,0.066181,61411.0,61410.0,0.002]
[1728498111590,0.082471,61411.0,61410.0,0.001]
[1728498112388,0.001,61411.0,61410.0,0.082472]
[1728498112593,0.3608,61419.0,61410.0,0.14760027]
[1728498112783,0.081462,61418.0,61416.0,0.081463]
[1728498112983,0.081462,61418.0,61416.0,0.13012471]
[1728498113186,0.081463,61417.0,61416.0,0.04866023]
[1728498113987,0.081463,61417.0,61411.0,0.04866023]
[1728498113988,0.08147,61412.0,61411.0,0.04866023]
[1728498114196,0.3608,61413.0,61410.0,0.01729]
[1728498114391,0.081471,61411.0,61410.0,0.01729]
[1728498114591,0.081471,61411.0,61410.0,0.01629]
[1728498115691,0.081471,61411.0,61410.0,0.06795023]
[1728498116391,0.081471,61411.0,61410.0,0.01929]
[1728498116599,0.081471,61411.0,61410.0,0.02129]
[1728498116897,0.3608,61413.0,61410.0,0.06995023]
[1728498117093,0.3608,61419.0,61412.0,0.28]
[1728498117094,0.081467,61415.0,61412.0,0.28]
[1728498117296,0.081467,61415.0,61413.0,0.081468]
[1728498117597,0.081468,61413.0,61412.0,0.28]
[1728498117786,0.08147,61412.0,61411.0,0.081471]
[1728498118391,0.081471,61411.0,61410.0,0.01829]
[1728498118791,0.361471,61411.0,61410.0,0.01829]
[1728498118991,0.081479,61405.0,61394.0,0.6408]
[1728498119192,0.442279,61405.0,61396.0,0.02889831]
[1728498119395,0.081484,61402.0,61396.0,0.02889831]
[1728498119701,0.3608,61405.0,61399.0,0.28]
[1728498119998,0.081486,61400.0,61399.0,0.361487]
[1728498120193,0.3608,61405.0,61394.0,0.28]
[1728498120194,0.081492,61395.0,61394.0,0.28]
[1728498120401,0.08148,61404.0,61394.0,0.19]
[1728498120402,0.3608,61399.0,61394.0,0.19]
[1728498120597,0.3608,61399.0,61388.0,0.2327]
[1728498120598,0.3608,61399.0,61398.0,0.271488]
[1728498120897,0.442279,61405.0,61404.0,0.08748]
[1728498120898,0.34551,61405.0,61404.0,0.08748]
[1728498121091,1.581472,61411.0,61405.0,0.081479]
[1728498121290,1.581472,61411.0,61404.0,0.196]
[1728498121291,1.581472,61411.0,61410.0,0.19]
[1728498121592,1.581472,61411.0,61407.0,0.01629]
[1728498121593,0.081475,61408.0,61407.0,0.01629]
[1728498122306,0.3608,61412.0,61407.0,0.20629]
[1728498122597,0.081456,61423.0,61407.0,0.20629]
[1728498122598,0.00244325,61418.0,61417.0,0.081463]
[1728498122791,0.00244325,61418.0,61410.0,0.442271]
[1728498122792,0.442255,61423.0,61422.0,0.01384675]
[1728498124203,0.3608,61423.0,61422.0,0.09530275]
[1728498124398,0.004,61423.0,61422.0,0.37530275]
[1728498124705,0.004,61423.0,61422.0,0.73610275]
[1728498126097,0.004,61423.0,61422.0,0.74310275]
[1728498126496,0.081447,61429.0,61425.0,0.081451]
[1728498126691,0.081447,61429.0,61428.0,0.28]
[1728498128301,0.081449,61428.0,61427.0,0.04866689]
[1728498128804,0.081451,61426.0,61425.0,0.04866689]
[1728498129004,0.081454,61424.0,61423.0,0.04866689]
[1728498129309,0.081454,61424.0,61422.0,0.01884675]
[1728498129310,0.3608,61424.0,61422.0,0.10030275]
[1728498129494,0.3608,61424.0,61422.0,0.01384675]
[1728498129693,0.081453,61425.0,61423.0,0.081455]
[1728498129893,0.3618,61429.0,61423.0,0.04866689]
[1728498130105,0.08145,61427.0,61426.0,0.081451]
[1728498130301,0.442248,61429.0,61423.0,0.04966689]
[1728498130505,0.081448,61429.0,61427.0,0.081449]
[1728498130893,0.3608,61438.0,61427.0,0.04866689]
[1728498131094,0.3608,61438.0,61436.0,0.01140736]
[1728498131297,0.081437,61437.0,61436.0,0.01140736]
[1728498132500,0.14465379,61437.0,61428.0,0.081448]
[1728498132700,0.081447,61430.0,61423.0,0.081454]
[1728498132906,0.081447,61430.0,61424.0,0.081454]
[1728498132907,0.081452,61426.0,61424.0,0.081454]
[1728498133100,0.08974763,61425.0,61424.0,0.081454]
[1728498133304,0.14439528,61425.0,61419.0,0.2341]
[1728498133511,0.14436961,61424.0,61420.0,0.081459]
[1728498133805,0.14436961,61424.0,61419.0,0.2341]
[1728498133806,0.081459,61420.0,61419.0,0.2341]
[1728498134208,0.081464,61416.0,61415.0,0.00148]
[1728498134398,0.08147,61412.0,61410.0,0.0295093]
[1728498134603,0.0252397,61411.0,61410.0,0.081472]
[1728498134794,0.0089497,61411.0,61409.0,0.00244313]
[1728498134998,0.081472,61410.0,61409.0,0.00244313]
[1728498135397,0.13493489,61410.0,61409.0,0.00244313]
[1728498135594,0.13479103,61410.0,61409.0,0.00244313]
[1728498135798,0.081472,61410.0,61409.0,0.00244313]
[1728498136103,0.425982,61410.0,61409.0,0.00244313]
[1728498136297,0.425982,61410.0,61409.0,0.00644313]
[1728498137295,0.425982,61410.0,61409.0,0.00844313]
[1728498137808,0.47887066,61410.0,61409.0,0.00844313]
[1728498138013,0.47887066,61410.0,61409.0,0.00644313]
[1728498138014,0.64018708,61410.0,61409.0,0.00644313]
[1728498138205,0.64018708,61410.0,61409.0,0.00344313]
[1728498138898,0.47987066,61410.0,61409.0,0.00344313]
[1728498139204,0.081484,61401.0,61400.0,0.081484]
[1728498139406,1.06314361,61410.0,61391.0,0.28]
[1728498139407,0.081488,61399.0,61397.0,0.442289]
[1728498139602,0.081488,61398.0,61397.0,0.3608]
[1728498139805,0.065188,61398.0,61397.0,0.46683521]
[1728498140007,0.065188,61398.0,61397.0,0.54832521]
[1728498140307,0.048888,61398.0,61397.0,0.46683521]
[1728498140502,0.28,61402.0,61387.0,0.00244321]
[1728498140503,0.08149,61397.0,61394.0,0.08113715]
[1728498140711,0.001,61401.0,61393.0,0.08113715]
[1728498140902,0.081487,61399.0,61398.0,0.06490084]
[1728498141107,0.001,61401.0,61397.0,0.06490084]
[1728498141108,0.081488,61398.0,61397.0,0.06490084]
[1728498141409,0.723288,61398.0,61397.0,0.011]
[1728498142014,0.081495,61393.0,61389.0,0.06490084]
[1728498142213,0.081495,61393.0,61387.0,0.00244321]
[1728498142214,0.6408,61390.0,61388.0,0.06490084]
[1728498142515,0.081502,61388.0,61387.0,0.00244321]
[1728498143520,1.08868,61388.0,61379.0,0.06490084]
[1728498143706,0.3608,61380.0,61376.0,0.06490084]
[1728498143915,0.3608,61380.0,61375.0,0.06490084]
[1728498143916,0.081518,61376.0,61375.0,0.06490084]
[1728498144211,0.081518,61376.0,61375.0,0.081516]
[1728498144612,0.2235,61379.0,61373.0,0.28]
[1728498144613,0.081514,61379.0,61378.0,0.081515]
[1728498145206,0.3445,61380.0,61379.0,0.081514]
[1728498145609,1.50084,61385.0,61378.0,0.28]
[1728498145811,1.50084,61385.0,61378.0,0.361515]
[1728498145812,0.001,61379.0,61378.0,0.361515]
[1728498146220,0.081509,61383.0,61381.0,0.08151]
[1728498146419,0.08151,61382.0,61381.0,0.08151]
[1728498146613,0.3608,61382.0,61376.0,0.0163]
[1728498146820,0.081516,61377.0,61376.0,0.0163]
[1728498147017,0.004,61379.0,61376.0,0.0163]
[1728498147319,0.004,61379.0,61378.0,0.081515]
[1728498147515,0.6428,61382.0,61376.0,0.0163]
[1728498147718,0.442316,61377.0,61376.0,0.0163]
[1728498148217,1.531116,61377.0,61376.0,0.0163]
[1728498148411,1.531116,61377.0,61376.0,0.0183]
[1728498148717,0.931116,61377.0,61376.0,0.0183]
[1728498148924,0.932116,61377.0,61376.0,0.0233]
[1728498149216,0.082516,61377.0,61376.0,0.104818]
[1728498149918,0.082516,61377.0,61376.0,0.103818]
[1728498149919,0.006,61377.0,61376.0,0.103818]
[1728498150420,0.007,61377.0,61376.0,0.098818]
[1728498150617,0.088516,61377.0,61376.0,0.098818]
[1728498151216,0.083516,61377.0,61376.0,0.0163]
[1728498151521,0.085516,61377.0,61376.0,0.0163]
[1728498151715,0.004,61377.0,61376.0,0.097818]
[1728498152608,0.085516,61377.0,61376.0,0.097818]
[1728498153515,0.002,61377.0,61376.0,0.0163]
[1728498153706,0.002,61377.0,61376.0,0.097818]
[1728498154518,0.001,61377.0,61376.0,0.097818]
[1728498154722,0.001,61377.0,61376.0,0.099818]
[1728498155419,0.0038,61396.0,61376.0,0.003]
[1728498155725,0.3608,61397.0,61376.0,0.003]
[1728498155726,0.081503,61387.0,61386.0,0.3608]
[1728498156021,0.081501,61389.0,61387.0,0.081502]
[1728498156421,0.081501,61389.0,61386.0,0.3608]
[1728498156422,0.081496,61393.0,61386.0,0.3608]
[1728498156614,0.081501,61390.0,61389.0,0.081499]
[1728498157819,0.081496,61393.0,61392.0,0.081496]
[1728498158018,0.001,61390.0,61389.0,0.0815]
[1728498158223,0.3608,61397.0,61396.0,0.0153]
[1728498158427,0.3608,61397.0,61396.0,0.096791]
[1728498159827,0.081483,61402.0,61401.0,0.081484]
[1728498160424,0.3608,61410.0,61398.0,0.3608]
[1728498160425,0.081479,61405.0,61398.0,0.3608]
[1728498160624,0.081479,61405.0,61404.0,0.08148]
[1728498160936,0.3608,61410.0,61399.0,0.06490084]
[1728498161224,0.081476,61407.0,61406.0,0.081477]
[1728498161617,0.081482,61404.0,61403.0,0.081481]
[1728498162523,0.081482,61404.0,61403.0,0.06476178]
[1728498162524,0.28,61404.0,61403.0,0.06476178]
[1728498162725,0.28,61404.0,61397.0,0.06476178]
[1728498162930,0.08149,61397.0,61396.0,0.0153]
[1728498163926,0.08149,61397.0,61396.0,0.08006178]
[1728498164129,0.08149,61397.0,61396.0,0.0183]
[1728498164328,0.08149,61397.0,61385.0,0.0024433]
[1728498164329,0.081498,61391.0,61387.0,0.06476178]
[1728498164532,0.6408,61388.0,61386.0,0.08116253]
[1728498164839,1.581503,61387.0,61386.0,0.0163]
[1728498166027,1.942303,61387.0,61386.0,0.01229595]
[1728498166223,0.081511,61381.0,61380.0,0.06486253]
[1728498166425,0.722311,61381.0,61380.0,0.06486253]
[1728498166635,0.722311,61381.0,61377.0,0.06486253]
[1728498166823,0.081515,61378.0,61377.0,0.06486253]
[1728498167020,0.081516,61377.0,61376.0,0.06486253]
[1728498167428,1.50092,61378.0,61376.0,0.06486253]
[1728498167623,0.081516,61377.0,61376.0,0.06486253]
[1728498168024,0.00296001,61378.0,61376.0,0.06486253]
[1728498168225,0.083515,61378.0,61377.0,0.14637853]
[1728498168424,0.002,61378.0,61377.0,0.081516]
[1728498169037,0.002,61378.0,61377.0,0.16265315]
[1728498169541,0.081512,61381.0,61380.0,0.081511]
[1728498170336,0.081512,61381.0,61376.0,0.08413715]
[1728498170538,0.081516,61377.0,61376.0,0.003]
[1728498171038,0.28,61379.0,61375.0,0.0163]
[1728498171237,0.081515,61378.0,61377.0,0.003]
[1728498171436,0.081515,61378.0,61377.0,0.084516]
[1728498172031,0.081515,61378.0,61377.0,0.081516]
[1728498172540,0.3608,61380.0,61377.0,0.081516]
[1728498172836,0.3445,61380.0,61379.0,0.361514]
[1728498173238,0.3445,61380.0,61379.0,0.18762198]
[1728498173536,0.081514,61379.0,61378.0,0.0811732]
[1728498174442,0.081514,61379.0,61377.0,0.003]
[1728498174443,0.081511,61381.0,61377.0,0.0841732]
[1728498174647,0.081515,61378.0,61377.0,0.003]
[1728498174832,0.081512,61381.0,61380.0,0.081512]
[1728498176139,0.5215,61398.0,61380.0,0.28]
[1728498176334,0.36324435,61394.0,61385.0,0.44197751]
[1728498176536,0.00244435,61394.0,61393.0,0.081495]
[1728498176735,0.00244435,61394.0,61393.0,0.26822142]
[1728498176935,0.00244435,61394.0,61393.0,0.18704391]
[1728498177144,0.08393835,61394.0,61393.0,0.18704391]
[1728498177341,0.00244435,61394.0,61393.0,0.26814162]
[1728498177534,0.3608,61400.0,61399.0,0.09534265]
[1728498177729,0.442286,61400.0,61399.0,0.09534265]
[1728498178341,0.3608,61400.0,61399.0,0.09534265]
[1728498178550,0.442286,61400.0,61399.0,0.09534265]
[1728498179143,0.442286,61400.0,61399.0,0.01485565]
[1728498179144,0.451286,61400.0,61399.0,0.01485565]
[1728498179746,0.465286,61400.0,61399.0,0.01485565]
[1728498180347,1.553886,61400.0,61399.0,0.01485565]
[1728498180653,0.081494,61394.0,61393.0,0.06491324]
[1728498180945,0.3608,61394.0,61392.0,0.06491324]
[1728498181155,0.3838,61400.0,61399.0,0.081487]
[1728498181447,0.465286,61400.0,61399.0,0.081487]
[1728498181635,0.456286,61400.0,61399.0,0.081487]
[1728498182036,0.442286,61400.0,61399.0,0.081487]
[1728498182350,0.451286,61400.0,61399.0,0.082487]
[1728498182844,0.465286,61400.0,61399.0,0.082487]
[1728498183932,0.465286,61400.0,61399.0,0.001]
[1728498185039,0.465286,61400.0,61399.0,0.082487]
[1728498185247,1.965286,61400.0,61399.0,0.001]
[1728498188437,1.965286,61400.0,61399.0,0.082487]
[1728498188648,1.604486,61400.0,61399.0,0.082487]
[1728498191450,1.604486,61400.0,61399.0,0.14740773]
[1728498191649,0.104486,61400.0,61399.0,0.082487]
[1728498191844,0.023,61400.0,61399.0,0.082487]
[1728498194253,0.023,61400.0,61399.0,1.171087]
[1728498194444,0.00244349,61413.0,61399.0,1.55564404]
[1728498194646,0.081464,61416.0,61415.0,0.09532151]
[1728498194841,1.581464,61416.0,61415.0,0.01385651]
[1728498195154,1.581464,61416.0,61415.0,0.09532251]
[1728498195449,0.08146,61420.0,61415.0,0.01385651]
[1728498195650,0.08146,61420.0,61416.0,0.2248]
[1728498195840,0.081457,61422.0,61416.0,0.2248]
[1728498196042,0.081457,61422.0,61420.0,0.081458]
[1728498196244,0.081455,61423.0,61422.0,0.081456]
[1728498197046,1.50084,61426.0,61422.0,0.081456]
[1728498197348,0.081451,61427.0,61424.0,0.081454]
[1728498197547,0.081451,61427.0,61426.0,0.081451]
[1728498197948,0.082286,61431.0,61423.0,0.3608]
[1728498198150,0.081449,61428.0,61427.0,0.01385]
[1728498198848,0.081449,61428.0,61427.0,0.0953]
[1728498199056,0.2459,61434.0,61427.0,0.0953]
[1728498199057,0.6067,61434.0,61427.0,0.01385]
[1728498199250,0.081449,61428.0,61427.0,0.01385]
[1728498199657,0.087449,61428.0,61427.0,0.01385]
[1728498201049,0.081449,61428.0,61427.0,0.01385]
[1728498202442,0.3608,61434.0,61427.0,0.01385]
[1728498202647,0.081432,61441.0,61434.0,0.081441]
[1728498202648,0.081439,61436.0,61434.0,0.081441]
[1728498202947,0.081433,61440.0,61437.0,0.081436]
[1728498203148,0.3608,61442.0,61438.0,0.28]
[1728498203351,0.081428,61444.0,61442.0,0.081429]
[1728498203562,0.081428,61444.0,61443.0,0.081429]
[1728498204155,1.9794,61452.0,61440.0,0.01385]
[1728498204156,0.081431,61441.0,61440.0,0.01385]
[1728498204658,0.081426,61445.0,61444.0,0.081427]
[1728498204849,0.081426,61445.0,61440.0,0.29385]
[1728498204850,0.3608,61447.0,61440.0,0.65465]
[1728498205257,0.00092,61452.0,61443.0,0.001]
[1728498205549,0.28244142,61455.0,61443.0,0.001]
[1728498205550,0.00244142,61455.0,61449.0,0.28]
[1728498205846,0.00244142,61455.0,61447.0,0.3608]
[1728498206047,0.08141,61457.0,61456.0,0.081411]
[1728498206451,0.08141,61457.0,61455.0,0.01383858]
[1728498206452,0.081411,61456.0,61455.0,0.01383858]
[1728498207157,1.86168,61459.0,61455.0,0.01383858]
[1728498207347,1.86168,61459.0,61456.0,0.08141]
[1728498207348,0.442208,61459.0,61456.0,0.08141]
[1728498207543,0.442208,61459.0,61458.0,0.081409]
[1728498207544,0.3608,61459.0,61458.0,0.081409]
[1728498207746,0.442201,61464.0,61461.0,0.081404]
[1728498207953,1.5,61463.0,61461.0,0.081404]
[1728498208152,0.081403,61462.0,61461.0,0.081404]
[1728498208957,0.3608,61464.0,61458.0,0.64264]
[1728498208958,0.081407,61460.0,61459.0,0.081407]
[1728498209149,0.28,61460.0,61456.0,0.001]
[1728498209355,0.08141,61457.0,61456.0,0.001]
[1728498210450,0.081411,61456.0,61455.0,0.01383858]
[1728498210653,0.361411,61456.0,61455.0,0.01383858]
[1728498212145,0.081411,61456.0,61455.0,0.01383858]
[1728498212350,0.090411,61456.0,61455.0,0.01483858]
[1728498212550,0.090411,61456.0,61455.0,0.09625158]
[1728498212760,0.091411,61456.0,61455.0,0.09725158]
[1728498213054,0.091411,61456.0,61455.0,0.01583858]
[1728498214060,0.371411,61456.0,61455.0,0.01583858]
[1728498214669,0.091411,61456.0,61455.0,0.01583858]
[1728498216356,0.371411,61456.0,61455.0,0.01583858]
[1728498218463,0.371411,61456.0,61455.0,0.09725158]
[1728498218464,0.091411,61456.0,61455.0,0.09725158]
[1728498219665,0.371411,61456.0,61455.0,0.01583858]
[1728498220565,0.091411,61456.0,61455.0,0.01583858]
[1728498222052,0.371411,61456.0,61455.0,0.01583858]
[1728498222662,0.371411,61456.0,61445.0,0.27585341]
[1728498222663,0.34750024,61456.0,61445.0,0.27585341]
[1728498222868,0.34750024,61456.0,61440.0,0.36252]
[1728498222869,0.615945,61446.0,61440.0,0.36252]
[1728498223058,0.081429,61443.0,61440.0,0.3608]
[1728498223276,0.12377622,61443.0,61440.0,0.3608]
[1728498223457,1.62377622,61443.0,61440.0,0.3608]
[1728498223657,0.04042415,61443.0,61442.0,0.19244122]
[1728498223855,0.02414415,61443.0,61442.0,0.27387122]
[1728498224159,0.081413,61455.0,61454.0,0.097693]
[1728498224360,0.12879468,61455.0,61454.0,0.097693]
[1728498224666,1.62879468,61455.0,61454.0,0.097693]
[1728498225163,1.581413,61455.0,61454.0,0.097693]
[1728498225467,1.583413,61455.0,61454.0,0.098693]
[1728498226259,0.094413,61455.0,61454.0,0.01828]
[1728498226568,0.14180041,61455.0,61454.0,0.01828]
[1728498226863,0.06038741,61455.0,61454.0,0.01828]